bitfinex-derivatives/quotes_BTCF0:USTF0_20241029
["timestamp","ask_amount","ask_price","bid_price","bid_amount"]
[1730160628325,0.23976819,69824.0,69819.0,0.05717132]
[1730160628518,0.064484,69823.0,69819.0,0.05717132]
[1730160628721,0.064485,69822.0,69819.0,0.05717132]
[1730160629227,0.23876819,69824.0,69821.0,0.04278604]
[1730160629411,0.064485,69822.0,69818.0,0.10727404]
[1730160629612,0.064485,69822.0,69818.0,0.064488]
[1730160630016,0.065485,69822.0,69819.0,0.36]
[1730160630218,0.066485,69822.0,69819.0,0.36]
[1730160630723,0.066485,69822.0,69819.0,0.424487]
[1730160634328,0.10008,69821.0,69819.0,0.424487]
[1730160635813,0.10108,69821.0,69819.0,0.424487]
[1730160637240,0.10208,69821.0,69819.0,0.424487]
[1730160637529,0.064486,69820.0,69819.0,0.36]
[1730160637723,0.20217419,69820.0,69819.0,0.36]
[1730160637920,0.56297419,69820.0,69819.0,0.36]
[1730160638231,0.064488,69818.0,69815.0,0.06449]
[1730160639025,0.50048819,69820.0,69815.0,0.06449]
[1730160639230,0.06449,69817.0,69815.0,0.06449]
[1730160639822,0.06449,69817.0,69815.0,0.10727604]
[1730160640515,0.06449,69817.0,69814.0,0.04278604]
[1730160640918,0.064491,69815.0,69814.0,0.04278604]
[1730160641322,0.064491,69815.0,69813.0,0.40277002]
[1730160641527,0.064491,69815.0,69814.0,0.04277002]
[1730160642222,0.064491,69815.0,69813.0,0.04277002]
[1730160642433,0.065491,69815.0,69813.0,0.04277002]
[1730160643231,0.066491,69815.0,69813.0,0.04277002]
[1730160643830,0.066491,69815.0,69811.0,0.13768819]
[1730160644529,0.0867416,69815.0,69811.0,0.13768819]
[1730160644831,0.0867416,69815.0,69812.0,0.064494]
[1730160645429,0.0857416,69815.0,69812.0,0.064494]
[1730160645629,0.064494,69812.0,69810.0,0.05789132]
[1730160645825,0.064495,69811.0,69808.0,0.42828566]
[1730160646035,0.064495,69811.0,69809.0,0.36]
[1730160646531,0.13768819,69813.0,69809.0,0.36]
[1730160646532,0.164536,69810.0,69809.0,0.36]
[1730160646739,0.164536,69810.0,69808.0,0.00214866]
[1730160647126,0.164536,69810.0,69808.0,0.36214866]
[1730160647939,0.165536,69810.0,69808.0,0.36214866]
[1730160648538,0.165536,69810.0,69808.0,0.41931998]
[1730160648723,0.166536,69810.0,69808.0,0.41931998]
[1730160649331,0.166536,69810.0,69808.0,0.36214866]
[1730160649929,0.166536,69810.0,69809.0,0.064497]
[1730160649930,0.10204,69810.0,69809.0,0.064497]
[1730160650531,0.10204,69810.0,69809.0,0.424497]
[1730160650921,0.10104,69810.0,69809.0,0.424497]
[1730160651231,0.10204,69810.0,69809.0,0.58101659]
[1730160651435,0.10204,69810.0,69809.0,0.50942386]
[1730160655534,0.002,69810.0,69809.0,0.50942386]
[1730160657940,0.002,69810.0,69809.0,0.14942386]
[1730160658436,0.002,69810.0,69809.0,0.5997819]
[1730160658838,0.3608,69819.0,69809.0,0.5352849]
[1730160658839,0.46084,69819.0,69809.0,0.5352849]
[1730160659048,0.46084,69819.0,69818.0,0.09035804]
[1730160660334,0.526327,69819.0,69818.0,0.09035804]
[1730160660533,0.526327,69819.0,69811.0,0.0341]
[1730160660534,0.526327,69819.0,69816.0,0.07159351]
[1730160660734,0.54734879,69819.0,69818.0,0.064488]
[1730160661942,0.54734879,69819.0,69818.0,0.065488]
[1730160662346,0.54734879,69819.0,69818.0,0.001]
[1730160664535,0.44730879,69819.0,69818.0,0.001]
[1730160664739,0.54734879,69819.0,69818.0,0.001]
[1730160665156,0.54734879,69819.0,69818.0,0.065488]
[1730160665837,0.54734879,69819.0,69818.0,0.15584604]
[1730160666243,0.54734879,69819.0,69818.0,0.065488]
[1730160666544,0.54734879,69819.0,69818.0,0.101788]
[1730160666849,0.54734879,69819.0,69818.0,0.17338151]
[1730160667148,0.54734879,69819.0,69818.0,0.101788]
[1730160667349,0.44730879,69819.0,69818.0,0.101788]
[1730160667547,0.54734879,69819.0,69818.0,0.17338151]
[1730160667750,0.54734879,69819.0,69818.0,0.101788]
[1730160669248,0.54734879,69819.0,69818.0,0.17338151]
[1730160670044,0.54734879,69819.0,69818.0,0.101788]
[1730160670257,0.54734879,69819.0,69818.0,0.17338151]
[1730160670746,0.54734879,69819.0,69818.0,0.101788]
[1730160671846,0.54734879,69819.0,69818.0,0.17338151]
[1730160672052,0.44730879,69819.0,69818.0,0.25811758]
[1730160672246,0.54758879,69819.0,69818.0,0.18652407]
[1730160672450,0.54758879,69819.0,69818.0,0.17342241]
[1730160672646,0.54758879,69819.0,69818.0,0.101788]
[1730160672850,0.54758879,69819.0,69818.0,0.17342241]
[1730160673242,0.54758879,69819.0,69818.0,0.101788]
[1730160673440,0.54758879,69819.0,69818.0,0.17342241]
[1730160674354,0.54758879,69819.0,69818.0,0.065488]
[1730160675848,0.54758879,69819.0,69817.0,0.03244887]
[1730160676351,0.44630879,69819.0,69818.0,0.064488]
[1730160676652,0.54758879,69819.0,69818.0,0.066488]
[1730160677054,0.54658879,69819.0,69818.0,0.065488]
[1730160677246,0.54758879,69819.0,69818.0,0.065488]
[1730160677746,0.54758879,69819.0,69818.0,0.066488]
[1730160678256,0.54758879,69819.0,69818.0,0.065488]
[1730160678647,0.44730879,69819.0,69818.0,0.065488]
[1730160679152,0.54758879,69819.0,69818.0,0.065488]
[1730160680155,0.08650879,69819.0,69818.0,0.065488]
[1730160680355,0.18678879,69819.0,69818.0,0.065488]
[1730160681849,0.18678879,69819.0,69818.0,0.001]
[1730160682044,0.27714683,69819.0,69818.0,0.001]
[1730160682244,0.79718487,69819.0,69818.0,0.001]
[1730160684749,0.70682683,69819.0,69818.0,0.001]
[1730160684945,0.27714683,69819.0,69818.0,0.001]
[1730160685147,0.27614683,69819.0,69818.0,0.001]
[1730160685355,0.17586683,69819.0,69818.0,0.001]
[1730160685549,0.27614683,69819.0,69818.0,0.001]
[1730160685747,0.18578879,69819.0,69818.0,0.15584604]
[1730160686154,0.08550879,69819.0,69818.0,0.15584604]
[1730160686348,0.18578879,69819.0,69818.0,0.15584604]
[1730160687157,0.18578879,69819.0,69818.0,0.065488]
[1730160689151,0.54658879,69819.0,69818.0,0.065488]
[1730160690558,0.44630879,69819.0,69818.0,0.065488]
[1730160690752,0.54658879,69819.0,69818.0,0.065488]
[1730160692563,0.002,69819.0,69818.0,0.20318117]
[1730160692769,0.3608,69827.0,69822.0,0.064484]
[1730160692770,0.064484,69823.0,69822.0,0.064484]
[1730160693067,0.064484,69823.0,69822.0,0.28648552]
[1730160693858,0.064484,69823.0,69822.0,0.20217717]
[1730160694466,0.065484,69823.0,69822.0,0.28645695]
[1730160695063,0.066484,69823.0,69822.0,0.28845695]
[1730160695458,0.002,69823.0,69822.0,0.28845695]
[1730160695665,0.10028,69827.0,69826.0,0.064481]
[1730160695865,0.10028,69827.0,69826.0,0.28645395]
[1730160696063,0.10028,69830.0,69829.0,0.064478]
[1730160696366,0.064475,69833.0,69832.0,0.064475]
[1730160696367,0.164755,69833.0,69832.0,0.064475]
[1730160696771,0.10028,69833.0,69832.0,0.064475]
[1730160697176,0.38081381,69835.0,69833.0,0.064474]
[1730160697383,0.38081381,69835.0,69834.0,0.05722582]
[1730160697672,0.38081381,69835.0,69833.0,0.064474]
[1730160697869,0.40136,69845.0,69834.0,0.13769317]
[1730160697870,0.10028,69837.0,69834.0,0.13769317]
[1730160698074,0.10028,69837.0,69836.0,0.064472]
[1730160698477,0.06661675,69840.0,69834.0,0.13769317]
[1730160698672,0.16689675,69840.0,69838.0,0.06447]
[1730160698873,0.18754017,69840.0,69839.0,0.0702]
[1730160699668,0.02279217,69840.0,69839.0,0.134669]
[1730160699873,0.12303217,69840.0,69839.0,0.134669]
[1730160701182,0.13103217,69840.0,69839.0,0.134669]
[1730160701485,0.13803217,69840.0,69839.0,0.134669]
[1730160701676,0.11738875,69840.0,69839.0,0.134669]
[1730160701875,0.11738875,69840.0,69839.0,0.19186041]
[1730160702480,0.01714875,69840.0,69839.0,0.134669]
[1730160702979,0.01714875,69840.0,69839.0,0.19186041]
[1730160703874,0.01714875,69840.0,69839.0,0.134669]
[1730160705983,0.01714875,69840.0,69839.0,0.0306423]
[1730160706389,0.01714875,69840.0,69836.0,0.12166241]
[1730160706588,0.01714875,69840.0,69836.0,0.064471]
[1730160706792,0.20216217,69839.0,69836.0,0.064471]
[1730160708481,0.09033803,69837.0,69836.0,0.064471]
[1730160709780,0.064472,69836.0,69832.0,0.100375]
[1730160710083,0.064472,69836.0,69833.0,0.27822172]
[1730160710889,0.09033803,69837.0,69835.0,0.064473]
[1730160710890,0.09833803,69837.0,69835.0,0.064473]
[1730160711190,0.004,69837.0,69836.0,0.064472]
[1730160711389,0.00214875,69840.0,69836.0,0.064472]
[1730160712080,0.06661675,69840.0,69836.0,0.064472]
[1730160713077,0.004,69837.0,69836.0,0.064472]
[1730160713489,0.008,69837.0,69836.0,0.064472]
[1730160713893,0.07361675,69840.0,69836.0,0.064472]
[1730160714190,0.08161675,69840.0,69836.0,0.064472]
[1730160714379,0.01714875,69840.0,69839.0,0.064469]
[1730160714582,0.09033803,69841.0,69839.0,0.064469]
[1730160714583,0.15480503,69841.0,69839.0,0.064469]
[1730160715183,0.008,69840.0,69839.0,0.064469]
[1730160716285,0.015,69840.0,69839.0,0.064469]
[1730160716685,0.007,69840.0,69839.0,0.064469]
[1730160716889,0.007,69840.0,69839.0,0.424469]
[1730160717192,0.064461,69848.0,69846.0,0.064462]
[1730160717895,0.064461,69848.0,69847.0,0.064461]
[1730160719592,0.065461,69848.0,69847.0,0.064461]
[1730160720191,0.001,69848.0,69845.0,0.18344346]
[1730160720386,0.001,69848.0,69847.0,0.064461]
[1730160720592,0.001,69848.0,69847.0,0.12156643]
[1730160721401,0.10004,69850.0,69849.0,0.06446]
[1730160721695,0.10004,69850.0,69849.0,0.21195681]
[1730160721897,0.44634565,69851.0,69849.0,0.21195681]
[1730160722084,0.425258,69851.0,69850.0,0.064459]
[1730160722290,0.425258,69851.0,69850.0,0.12161778]
[1730160722491,0.3608,69851.0,69850.0,0.064459]
[1730160723300,0.3618,69851.0,69850.0,0.064459]
[1730160724205,0.3608,69851.0,69850.0,0.064459]
[1730160724594,0.064446,69865.0,69859.0,0.06445]
[1730160724909,0.02290749,69862.0,69859.0,0.06445]
[1730160725205,0.02290749,69862.0,69850.0,0.3608]
[1730160725206,0.064451,69858.0,69857.0,0.05718612]
[1730160725399,0.064451,69858.0,69855.0,0.064454]
[1730160727099,0.064451,69858.0,69857.0,0.0571711]
[1730160727394,0.064451,69858.0,69854.0,0.09033803]
[1730160727395,0.007,69858.0,69854.0,0.09033803]
[1730160727696,0.015,69858.0,69857.0,0.15479003]
[1730160728496,0.015,69858.0,69857.0,0.23865158]
[1730160730100,0.007,69858.0,69857.0,0.23865158]
[1730160730300,0.015,69858.0,69857.0,0.23865158]
[1730160730696,0.015,69858.0,69857.0,0.82293727]
[1730160731193,0.015,69858.0,69857.0,0.73957423]
[1730160731393,0.015,69858.0,69857.0,0.66809158]
[1730160731796,0.015,69858.0,69857.0,0.77186102]
[1730160732199,0.015,69858.0,69857.0,0.25916227]
[1730160732902,0.015,69858.0,69857.0,0.15388679]
[1730160733112,0.015,69858.0,69857.0,0.21833879]
[1730160741298,0.079451,69858.0,69857.0,0.15388679]
[1730160741612,0.015,69858.0,69856.0,0.3608]
[1730160741807,0.015,69858.0,69853.0,0.13759958]
[1730160741808,0.015,69858.0,69853.0,0.05708615]
[1730160742000,0.015,69858.0,69848.0,0.05708615]
[1730160742001,0.13759958,69854.0,69848.0,0.05708615]
[1730160742195,0.06446,69849.0,69848.0,0.05708615]
[1730160742511,0.064466,69842.0,69841.0,0.08577047]
[1730160742704,0.064469,69839.0,69838.0,0.3608]
[1730160743021,0.064469,69839.0,69838.0,0.49839958]
[1730160744302,0.065469,69839.0,69838.0,0.50239958]
[1730160744803,0.066469,69839.0,69838.0,0.50439958]
[1730160748402,0.066469,69839.0,69838.0,0.4571327]
[1730160749207,0.002,69839.0,69838.0,0.4571327]
[1730160749811,0.002,69839.0,69838.0,0.0963327]
[1730160750516,0.002,69839.0,69838.0,0.2511354]
[1730160750708,0.002,69839.0,69838.0,0.1608027]
[1730160758914,0.002,69839.0,69838.0,0.46620502]
[1730160759212,0.002,69839.0,69838.0,0.53762782]
[1730160759412,0.14088,69854.0,69852.0,0.064456]
[1730160759612,0.14088,69854.0,69839.0,0.064468]
[1730160759613,0.038,69854.0,69853.0,0.1547887]
[1730160760517,0.044,69854.0,69853.0,0.1547887]
[1730160761917,0.051,69854.0,69853.0,0.1547887]
[1730160763815,0.051,69854.0,69853.0,0.19761141]
[1730160764016,0.051,69854.0,69853.0,0.18472622]
[1730160764318,0.115455,69854.0,69853.0,0.14190351]
[1730160767618,0.115455,69854.0,69853.0,0.19899443]
[1730160767816,0.051,69854.0,69853.0,0.19899443]
[1730160768222,0.051,69854.0,69853.0,0.14190351]
[1730160770020,0.013,69854.0,69853.0,0.14190351]
[1730160773321,0.013,69854.0,69853.0,0.67651608]
[1730160774027,0.013,69854.0,69853.0,0.58618338]
[1730160774324,0.013,69854.0,69853.0,1.10599608]
[1730160774526,0.013,69854.0,69853.0,0.58618338]
[1730160778427,0.013,69854.0,69853.0,0.58600927]
[1730160781731,0.013,69854.0,69853.0,0.58611607]
[1730160783144,0.013,69854.0,69853.0,0.94611607]
[1730160783937,0.013,69854.0,69853.0,0.58611607]
[1730160786533,0.013,69854.0,69853.0,0.58623067]
[1730160790043,0.013,69854.0,69853.0,0.67199425]
[1730160790347,0.013,69854.0,69853.0,0.58623067]
[1730160790538,0.013,69854.0,69853.0,0.67199425]
[1730160791838,0.013,69854.0,69853.0,0.31119425]
[1730160795948,0.013,69854.0,69853.0,0.20687761]
[1730160796345,0.013,69854.0,69853.0,0.12111403]
[1730160796843,0.013,69854.0,69853.0,0.18557003]
[1730160797049,0.013,69854.0,69853.0,0.27147739]
[1730160797252,0.013,69854.0,69853.0,0.27147863]
[1730160797434,0.013,69854.0,69853.0,0.18557003]
[1730160800552,0.013,69854.0,69853.0,0.37570125]
[1730160800849,0.013,69854.0,69853.0,0.37564956]
[1730160803242,0.013,69854.0,69853.0,0.80512956]
[1730160803956,0.0742,69871.0,69853.0,1.01994513]
[1730160804151,0.0742,69871.0,69866.0,0.1547767]
[1730160804152,0.05787853,69867.0,69866.0,0.1547767]
[1730160804461,0.0375,69867.0,69866.0,0.23830386]
[1730160805165,0.0515,69867.0,69866.0,0.23830386]
[1730160805470,0.014,69867.0,69866.0,0.23830386]
[1730160806346,0.064411,69902.0,69866.0,0.23830386]
[1730160806347,0.3608,69886.0,69884.0,0.064427]
[1730160806550,0.3608,69886.0,69884.0,0.3022903]
[1730160806748,0.3608,69886.0,69884.0,0.1547597]
[1730160807949,0.01214774,69885.0,69884.0,0.1557597]
[1730160808254,0.02514774,69885.0,69884.0,0.21384574]
[1730160808554,0.04538919,69885.0,69884.0,0.1567597]
[1730160809360,0.02514774,69885.0,69884.0,0.21381623]
[1730160810468,0.02514774,69885.0,69884.0,0.5175597]
[1730160812254,0.02514774,69885.0,69884.0,0.57455388]
[1730160812460,0.02514774,69885.0,69884.0,0.5175597]
[1730160812657,0.02514774,69885.0,69884.0,0.62815432]
[1730160812857,0.02514774,69885.0,69884.0,0.53782162]
[1730160813049,0.02514774,69885.0,69884.0,0.68512626]
[1730160813050,0.023,69885.0,69884.0,0.68512626]
[1730160813346,0.023,69885.0,69884.0,0.84405731]
[1730160813752,0.023,69885.0,69884.0,1.27333731]
[1730160814157,0.0388,69900.0,69884.0,1.35615027]
[1730160814360,0.0388,69900.0,69899.0,0.1547467]
[1730160814654,0.0369,69904.0,69903.0,0.06441]
[1730160814851,0.04054626,69905.0,69903.0,0.0903327]
[1730160815157,0.00214626,69905.0,69904.0,0.064409]
[1730160816849,0.00714626,69905.0,69904.0,0.065409]
[1730160817254,0.00714626,69905.0,69904.0,0.066409]
[1730160818951,0.005,69905.0,69904.0,0.28238888]
[1730160820356,0.005,69905.0,69904.0,0.37272158]
[1730160820761,0.064401,69913.0,69904.0,0.37172158]
[1730160821069,0.064401,69913.0,69911.0,0.0903327]
[1730160822352,0.070401,69913.0,69911.0,0.0903327]
[1730160822747,0.070401,69913.0,69911.0,0.0913327]
[1730160822950,0.064401,69913.0,69911.0,0.0923327]
[1730160823163,0.070401,69913.0,69911.0,0.0923327]
[1730160823961,0.070401,69913.0,69909.0,0.05522451]
[1730160824259,0.070401,69913.0,69912.0,0.0903327]
[1730160825352,0.064401,69913.0,69912.0,0.0903327]
[1730160825554,0.007,69913.0,69912.0,0.0903327]
[1730160825954,0.0644,69914.0,69912.0,0.0903327]
[1730160826161,0.007,69913.0,69912.0,0.0923327]
[1730160827265,0.0714,69914.0,69912.0,0.0923327]
[1730160827761,0.064401,69913.0,69912.0,0.0923327]
[1730160828861,0.064401,69913.0,69912.0,0.0913327]
[1730160829065,0.064401,69913.0,69912.0,0.0923327]
[1730160829677,0.064401,69913.0,69912.0,0.0913327]
[1730160829860,0.071401,69913.0,69912.0,0.0923327]
[1730160835367,0.09162313,69913.0,69912.0,0.0923327]
[1730160837371,0.007,69913.0,69912.0,0.0923327]
[1730160837565,0.007,69913.0,69912.0,0.1567347]
[1730160839264,0.007,69913.0,69912.0,0.19941431]
[1730160839971,0.007,69913.0,69912.0,0.1567347]
[1730160840475,0.007,69913.0,69912.0,0.19944683]
[1730160841272,0.007,69913.0,69912.0,0.1567347]
[1730160842776,0.007,69913.0,69912.0,0.21364085]
[1730160842980,0.007,69913.0,69912.0,0.1567347]
[1730160846172,0.139699,69915.0,69914.0,0.0644]
[1730160847379,0.139699,69915.0,69914.0,0.1547327]
[1730160847579,0.144699,69915.0,69914.0,0.1557327]
[1730160847979,0.144699,69915.0,69914.0,0.1567327]
[1730160851874,0.144699,69915.0,69914.0,0.002]
[1730160852980,0.005,69915.0,69914.0,0.0664]
[1730160853281,0.005,69915.0,69914.0,0.49833269]
[1730160853485,0.005,69915.0,69914.0,0.4272]
[1730160853682,0.005,69915.0,69914.0,0.0664]
[1730160856276,0.005,69915.0,69914.0,0.21967911]
[1730160856472,0.005,69915.0,69914.0,0.14854642]
[1730160856677,0.005,69915.0,69914.0,0.50934642]
[1730160856977,0.005,69915.0,69914.0,0.58071493]
[1730160857177,0.005,69915.0,69914.0,0.50934642]
[1730160857780,0.005,69915.0,69914.0,0.58072534]
[1730160858683,0.005,69915.0,69914.0,0.50934642]
[1730160858895,0.005,69915.0,69914.0,0.59967912]
[1730160859784,0.005,69915.0,69914.0,0.59867912]
[1730160860091,0.0376,69923.0,69918.0,0.064396]
[1730160860293,0.101991,69923.0,69922.0,0.0903327]
[1730160860787,0.00214581,69927.0,69923.0,0.064391]
[1730160860977,0.00214581,69927.0,69926.0,0.2450544]
[1730160861482,0.00214581,69927.0,69926.0,0.58687593]
[1730160861684,0.00214581,69927.0,69926.0,0.66804497]
[1730160861875,0.00214581,69927.0,69926.0,0.58687593]
[1730160862080,0.00214581,69927.0,69926.0,0.5155217]
[1730160862491,0.00814581,69927.0,69926.0,0.5165217]
[1730160862684,0.00814581,69927.0,69926.0,0.5175217]
[1730160863101,0.00814581,69927.0,69926.0,0.6078544]
[1730160863288,0.006,69927.0,69926.0,0.90272567]
[1730160864689,0.006,69927.0,69926.0,0.92299161]
[1730160865083,0.005,69927.0,69926.0,0.85860261]
[1730160866436,0.005,69927.0,69926.0,0.92299161]
[1730160866884,0.005,69927.0,69926.0,0.99407397]
[1730160867091,0.005,69927.0,69926.0,0.84193084]
[1730160867298,0.005,69927.0,69926.0,0.91301602]
[1730160867481,0.005,69927.0,69926.0,0.84193084]
[1730160867677,0.005,69927.0,69926.0,0.75159814]
[1730160867983,0.005,69927.0,69926.0,0.38306594]
[1730160868179,0.1597207,69927.0,69917.0,0.07108518]
[1730160868381,0.064399,69915.0,69914.0,0.3608]
[1730160869081,0.064399,69915.0,69906.0,0.45363292]
[1730160869082,0.064406,69907.0,69906.0,0.0008]
[1730160869286,0.064406,69907.0,69901.0,0.0903327]
[1730160869287,0.064409,69904.0,69901.0,0.0903327]
[1730160869488,0.064412,69901.0,69898.0,0.36366581]
[1730160869686,0.064412,69901.0,69900.0,0.0903327]
[1730160870290,0.064408,69906.0,69900.0,0.0903327]
[1730160870486,0.064409,69905.0,69904.0,0.0903327]
[1730160872794,0.069409,69905.0,69904.0,0.0903327]
[1730160876996,0.064414,69899.0,69898.0,0.36294581]
[1730160877690,0.103014,69899.0,69898.0,0.36294581]
[1730160878587,0.103014,69899.0,69898.0,0.36494581]
[1730160878906,0.103014,69899.0,69898.0,0.00414581]
[1730160879601,0.103014,69899.0,69898.0,0.00214581]
[1730160879807,0.108014,69899.0,69898.0,0.00514581]
[1730160880303,0.108014,69899.0,69898.0,0.00614581]
[1730160880697,0.108014,69899.0,69898.0,0.00314581]
[1730160882305,0.1280307,69899.0,69898.0,0.00314581]
[1730160883192,0.108014,69899.0,69898.0,0.00314581]
[1730160883395,0.005,69899.0,69898.0,0.15789251]
[1730160884502,0.005,69899.0,69898.0,0.20807653]
[1730160885108,0.3608,69908.0,69898.0,0.20707653]
[1730160885312,0.3608,69908.0,69907.0,0.13751672]
[1730160885501,0.10604,69909.0,69907.0,0.13751672]
[1730160885701,0.064403,69911.0,69907.0,0.13751672]
[1730160885900,0.10604,69910.0,69907.0,0.13751672]
[1730160886519,0.005,69908.0,69907.0,0.13751672]
[1730160887916,0.170443,69910.0,69907.0,0.13751672]
[1730160888115,0.175443,69910.0,69907.0,0.13851672]
[1730160888607,0.005,69908.0,69907.0,0.13851672]
[1730160888809,0.3658,69908.0,69907.0,0.13851672]
[1730160889118,0.3608,69908.0,69903.0,0.06441]
[1730160889409,0.064408,69906.0,69903.0,0.06441]
[1730160889612,0.064408,69906.0,69904.0,0.064409]
[1730160891407,0.064408,69906.0,69900.0,0.3608]
[1730160891603,0.069408,69906.0,69902.0,0.064411]
[1730160893511,0.069408,69906.0,69900.0,0.40420836]
[1730160893512,0.069408,69906.0,69903.0,0.06441]
[1730160893701,0.005,69906.0,69904.0,0.20192572]
[1730160894011,0.005,69906.0,69905.0,0.064408]
[1730160894803,0.005,69906.0,69905.0,0.10705636]
[1730160895009,0.01,69906.0,69905.0,0.064408]
[1730160895710,0.015,69906.0,69905.0,0.064408]
[1730160902316,0.015,69906.0,69905.0,0.2218201]
[1730160902518,0.015,69906.0,69905.0,0.2932442]
[1730160903020,0.015,69906.0,69905.0,0.22184608]
[1730160904716,0.015,69906.0,69905.0,0.30752748]
[1730160904918,0.015,69906.0,69905.0,0.3075313]
[1730160905222,0.015,69906.0,69905.0,0.30751625]
[1730160905522,0.015,69906.0,69905.0,0.22150704]
[1730160908623,0.015,69906.0,69905.0,0.24168644]
[1730160909514,0.015,69906.0,69905.0,0.32735661]
[1730160909720,0.015,69906.0,69905.0,0.24168644]
[1730160910612,0.015,69906.0,69905.0,0.33991806]
[1730160911418,0.015,69906.0,69905.0,0.24168644]
[1730160912622,0.015,69906.0,69905.0,0.32739324]
[1730160912819,0.015,69906.0,69905.0,0.24168644]
[1730160913727,0.015,69906.0,69905.0,0.33970326]
[1730160913913,0.015,69906.0,69905.0,0.33975127]
[1730160914226,0.015,69906.0,69905.0,0.24168644]
[1730160914414,0.015,69906.0,69905.0,0.33972851]
[1730160914617,0.015,69906.0,69905.0,0.24168644]
[1730160914821,0.015,69906.0,69905.0,0.33976245]
[1730160915112,0.015,69906.0,69905.0,1.12000099]
[1730160915312,0.3608,69920.0,69918.0,0.064396]
[1730160915730,0.10668,69931.0,69918.0,0.14655402]
[1730160916120,0.0395,69932.0,69918.0,0.14655402]
[1730160916121,0.064385,69930.0,69918.0,0.14655402]
[1730160916320,0.0395,69932.0,69918.0,0.29729608]
[1730160916525,0.14618,69932.0,69928.0,0.13751672]
[1730160916823,0.02023343,69931.0,69928.0,0.13751672]
[1730160917321,0.12691343,69931.0,69928.0,0.13751672]
[1730160917525,0.425186,69929.0,69928.0,0.13751672]
[1730160919024,0.425186,69929.0,69928.0,0.13851672]
[1730160919225,0.425186,69929.0,69928.0,0.13951672]
[1730160920217,0.425186,69929.0,69928.0,0.18228243]
[1730160920420,0.425186,69929.0,69928.0,0.002]
[1730160922217,0.425186,69929.0,69920.0,0.04276571]
[1730160922218,0.064393,69921.0,69920.0,0.04276571]
[1730160922427,0.064394,69920.0,69919.0,0.04276571]
[1730160922630,0.064399,69915.0,69914.0,0.064399]
[1730160924229,0.0393,69919.0,69909.0,0.07134886]
[1730160924432,0.13751672,69915.0,69909.0,0.064404]
[1730160924634,0.064403,69911.0,69909.0,0.27757687]
[1730160925830,0.064403,69911.0,69909.0,0.28157687]
[1730160926022,0.064403,69911.0,69909.0,0.28557687]
[1730160927426,0.064403,69911.0,69909.0,0.28157687]
[1730160927626,0.064403,69911.0,69909.0,0.27857687]
[1730160928023,0.064403,69911.0,69909.0,0.28057687]
[1730160928832,0.0385,69914.0,69909.0,0.28057687]
[1730160929032,0.0385,69914.0,69913.0,0.05708882]
[1730160930328,0.0385,69914.0,69911.0,0.13751672]
[1730160934131,0.0385,69914.0,69911.0,0.20886558]
[1730160934332,0.0385,69914.0,69913.0,0.43214886]
[1730160934637,0.0385,69914.0,69913.0,0.425201]
[1730160935139,0.10772,69916.0,69915.0,0.064399]
[1730160935323,0.10772,69918.0,69916.0,0.064397]
[1730160936329,0.12454959,69919.0,69916.0,0.064397]
[1730160936530,0.06015459,69919.0,69918.0,0.14733523]
[1730160936827,0.0383,69928.0,69918.0,0.09022962]
[1730160937029,0.0383,69928.0,69922.0,0.064392]
[1730160937030,0.3608,69923.0,69922.0,0.064392]
[1730160937227,0.172108,69927.0,69926.0,0.064389]
[1730160938032,0.172108,69927.0,69926.0,0.19743835]
[1730160938331,0.172108,69927.0,69926.0,0.15561862]
[1730160938526,0.172108,69927.0,69926.0,0.19943689]
[1730160938722,0.172108,69927.0,69926.0,0.15661862]
[1730160939123,0.172108,69927.0,69926.0,0.19943722]
[1730160939333,0.172108,69927.0,69926.0,0.19943682]
[1730160939730,0.172108,69927.0,69926.0,0.15661862]
[1730160939927,0.172108,69927.0,69926.0,0.19943841]
[1730160940342,0.172108,69927.0,69926.0,0.15661862]
[1730160940542,0.172108,69927.0,69926.0,0.20386315]
[1730160942236,0.02057627,69928.0,69926.0,0.20386315]
[1730160942237,0.12829627,69928.0,69927.0,0.064388]
[1730160942431,0.064385,69930.0,69928.0,0.064387]
[1730160942432,0.172105,69930.0,69928.0,0.064387]
[1730160942836,0.064385,69930.0,69928.0,0.12148978]
[1730160943042,0.564383,69933.0,69928.0,0.12148978]
[1730160943638,0.564383,69933.0,69928.0,0.065387]
[1730160944143,0.064384,69932.0,69928.0,0.065387]
[1730160945037,0.064384,69932.0,69928.0,0.066387]
[1730160945344,0.064384,69932.0,69928.0,0.12343348]
[1730160946636,0.52148017,69933.0,69929.0,0.064385]
[1730160946943,0.064384,69931.0,69930.0,0.05703687]
[1730160947238,0.064384,69931.0,69928.0,0.002]
[1730160947239,0.064386,69929.0,69928.0,0.002]
[1730160947432,0.064386,69929.0,69928.0,0.04479108]
[1730160947636,0.064386,69929.0,69928.0,0.002]
[1730160947842,0.064386,69929.0,69928.0,0.04379108]
[1730160948043,0.064387,69928.0,69927.0,0.04279108]
[1730160948742,0.064386,69929.0,69928.0,0.001]
[1730160948935,0.064386,69929.0,69928.0,0.0437944]
[1730160949135,0.064386,69929.0,69928.0,0.001]
[1730160949546,0.064386,69929.0,69928.0,0.002]
[1730160949841,0.3608,69931.0,69928.0,0.002]
[1730160950044,0.3608,69931.0,69929.0,0.20186015]
[1730160950349,0.425184,69931.0,69929.0,0.20186015]
[1730160950737,0.425184,69931.0,69929.0,0.25889702]
[1730160951335,0.425184,69931.0,69929.0,0.20186015]
[1730160951846,0.425184,69931.0,69929.0,0.20286015]
[1730160952551,0.425184,69931.0,69929.0,0.20386015]
[1730160952843,0.064385,69930.0,69929.0,0.20386015]
[1730160953351,0.064385,69930.0,69929.0,0.066386]
[1730160953854,0.064385,69930.0,69929.0,0.065386]
[1730160954051,0.064385,69930.0,69929.0,0.066386]
[1730160954246,0.064385,69930.0,69929.0,0.065386]
[1730160954551,0.064385,69930.0,69929.0,0.066386]
[1730160960464,0.064385,69930.0,69929.0,0.002]
[1730160963259,0.064385,69930.0,69929.0,0.05903687]